[Event "Early-Titled-Tuesday-Blitz-February-06-2024"]
[Site "Chess.com"]
[Date "2024.02.06"]
[Round "2"]
[White "Suleyman_Chess06"]
[Black "FabianoCaruana"]
[Result "1/2-1/2"]
[WhiteElo "2661"]
[BlackElo "3041"]
[TimeControl "180+1"]
[EndTime "8:17:54 PST"]
[Termination "Game drawn by repetition"]

1. Nf3 {[%clk 0:03:00.9]} 1... d5 {[%clk 0:02:45.1]} 2. g3 {[%clk 0:03:01.3]}
2... Nf6 {[%clk 0:02:44.7]} 3. Bg2 {[%clk 0:03:01.7]} 3... g6 {[%clk 0:02:45]}
4. O-O {[%clk 0:03:02.1]} 4... Bg7 {[%clk 0:02:45.8]} 5. d4 {[%clk 0:03:02.6]}
5... O-O {[%clk 0:02:46.5]} 6. c4 {[%clk 0:03:03.3]} 6... c6 {[%clk 0:02:47.1]}
7. cxd5 {[%clk 0:03:03.8]} 7... cxd5 {[%clk 0:02:47.1]} 8. Nc3 {[%clk
0:03:04.3]} 8... e6 {[%clk 0:02:45.7]} 9. Ne5 {[%clk 0:03:04.1]} 9... Nfd7
{[%clk 0:02:46]} 10. Nxd7 {[%clk 0:03:03.8]} 10... Bxd7 {[%clk 0:02:45.4]} 11.
Bf4 {[%clk 0:03:04]} 11... Nc6 {[%clk 0:02:45]} 12. Be3 {[%clk 0:03:03.3]} 12...
Rc8 {[%clk 0:02:41.7]} 13. Qd2 {[%clk 0:03:02.3]} 13... Ne7 {[%clk 0:02:31.6]}
14. Bh6 {[%clk 0:02:55.4]} 14... Bxh6 {[%clk 0:02:30.2]} 15. Qxh6 {[%clk
0:02:56.3]} 15... Nf5 {[%clk 0:02:30.9]} 16. Qd2 {[%clk 0:02:56.3]} 16... b5
{[%clk 0:02:27.6]} 17. e4 {[%clk 0:02:47.1]} 17... dxe4 {[%clk 0:02:25.4]} 18.
Nxe4 {[%clk 0:02:48]} 18... Bc6 {[%clk 0:02:25.8]} 19. Rfd1 {[%clk 0:02:47]}
19... Bxe4 {[%clk 0:02:25]} 20. Bxe4 {[%clk 0:02:47.9]} 20... Nd6 {[%clk
0:02:23.9]} 21. Bf3 {[%clk 0:02:42.5]} 21... Qb6 {[%clk 0:02:22.9]} 22. Rac1
{[%clk 0:02:35.9]} 22... Rfd8 {[%clk 0:02:20]} 23. d5 {[%clk 0:02:21.4]} 23...
Rxc1 {[%clk 0:02:14.5]} 24. Rxc1 {[%clk 0:02:18.7]} 24... Nc4 {[%clk 0:02:13.3]}
25. Qg5 {[%clk 0:02:16.8]} 25... exd5 {[%clk 0:02:08.8]} 26. b3 {[%clk
0:02:13.1]} 26... f6 {[%clk 0:02:00.4]} 27. Bxd5+ {[%clk 0:01:58.5]} 27... Kg7
{[%clk 0:01:59.7]} 28. Qf4 {[%clk 0:01:46.6]} 28... Ne5 {[%clk 0:01:56.6]} 29.
Bg2 {[%clk 0:01:45.4]} 29... Rd7 {[%clk 0:01:51.9]} 30. Bf1 {[%clk 0:01:34.2]}
30... a6 {[%clk 0:01:36.7]} 31. Be2 {[%clk 0:01:29.6]} 31... h5 {[%clk
0:01:12.1]} 32. h4 {[%clk 0:01:26.3]} 32... Qe6 {[%clk 0:00:59.7]} 33. Qe3
{[%clk 0:01:19.9]} 33... Re7 {[%clk 0:00:50.9]} 34. Rd1 {[%clk 0:00:50.7]} 34...
Rd7 {[%clk 0:00:32.2]} 35. Rxd7+ {[%clk 0:00:50]} 35... Qxd7 {[%clk 0:00:33.1]}
36. Kg2 {[%clk 0:00:42.9]} 36... Nc6 {[%clk 0:00:30.7]} 37. Bf3 {[%clk
0:00:39.4]} 37... Nd4 {[%clk 0:00:30.6]} 38. Qf4 {[%clk 0:00:34.3]} 38... b4
{[%clk 0:00:23.4]} 39. Qe3 {[%clk 0:00:24.4]} 39... a5 {[%clk 0:00:23.1]} 40.
Qd3 {[%clk 0:00:23.6]} 40... Qd6 {[%clk 0:00:21.2]} 41. Qe4 {[%clk 0:00:19.3]}
41... Qd7 {[%clk 0:00:15.5]} 42. Qd3 {[%clk 0:00:18.4]} 42... Qd8 {[%clk
0:00:15.8]} 43. Qe4 {[%clk 0:00:16.9]} 43... Qd6 {[%clk 0:00:15.5]} 44. Qb7+
{[%clk 0:00:15.8]} 44... Kh6 {[%clk 0:00:16]} 45. Qa8 {[%clk 0:00:15.7]} 45...
Kg7 {[%clk 0:00:14]} 46. Qb7+ {[%clk 0:00:16]} 46... Kh6 {[%clk 0:00:14]} 47.
Qa8 {[%clk 0:00:16.2]} 47... Kg7 {[%clk 0:00:14.5]} 48. Qb7+ {[%clk 0:00:16.7]}
1/2-1/2

[Event "Early-Titled-Tuesday-Blitz-February-06-2024"]
[Site "Chess.com"]
[Date "2024.02.06"]
[Round "2"]
[White "AlmasRakhmatullaev"]
[Black "JeFumeDesClopes"]
[Result "1-0"]
[WhiteElo "2893"]
[BlackElo "2602"]
[TimeControl "180+1"]
[EndTime "8:17:54 PST"]
[Termination "AlmasRakhmatullaev won by checkmate"]

1. e4 {[%clk 0:02:55.5]} 1... g6 {[%clk 0:02:57.9]} 2. d4 {[%clk 0:02:55]} 2...
Bg7 {[%clk 0:02:58.6]} 3. Nc3 {[%clk 0:02:54.8]} 3... d6 {[%clk 0:02:59.3]} 4.
Be3 {[%clk 0:02:54.3]} 4... a6 {[%clk 0:02:59.3]} 5. f3 {[%clk 0:02:53.5]} 5...
b5 {[%clk 0:02:59]} 6. Qd2 {[%clk 0:02:53.5]} 6... Nd7 {[%clk 0:02:57.9]} 7. h4
{[%clk 0:02:53.4]} 7... h5 {[%clk 0:02:57.3]} 8. Nh3 {[%clk 0:02:52.9]} 8... Bb7
{[%clk 0:02:53.2]} 9. Ng5 {[%clk 0:02:51.5]} 9... c5 {[%clk 0:02:53]} 10. O-O-O
{[%clk 0:02:49.1]} 10... cxd4 {[%clk 0:02:43]} 11. Bxd4 {[%clk 0:02:49]} 11...
Ngf6 {[%clk 0:02:43.6]} 12. Kb1 {[%clk 0:02:36.9]} 12... Rc8 {[%clk 0:02:32.7]}
13. Ne2 {[%clk 0:02:32.8]} 13... Nb6 {[%clk 0:02:05.3]} 14. Nf4 {[%clk
0:02:19.5]} 14... Nc4 {[%clk 0:01:39.3]} 15. Bxc4 {[%clk 0:02:04.8]} 15... Rxc4
{[%clk 0:01:40.2]} 16. Nfe6 {[%clk 0:01:46.7]} 16... fxe6 {[%clk 0:01:35.6]} 17.
Nxe6 {[%clk 0:01:47.6]} 17... Qd7 {[%clk 0:01:27.4]} 18. Nxg7+ {[%clk
0:01:47.7]} 18... Kf7 {[%clk 0:01:27.5]} 19. g4 {[%clk 0:01:14.9]} 19... hxg4
{[%clk 0:01:27.2]} 20. h5 {[%clk 0:01:13.6]} 20... Kxg7 {[%clk 0:01:23.8]} 21.
Qg5 {[%clk 0:01:09.4]} 21... Qe8 {[%clk 0:01:03.4]} 22. e5 {[%clk 0:00:45.9]}
22... dxe5 {[%clk 0:00:48.1]} 23. Bxe5 {[%clk 0:00:46.1]} 23... Bxf3 {[%clk
0:00:37]} 24. Rdf1 {[%clk 0:00:43.5]} 24... Re4 {[%clk 0:00:29.3]} 25. Rh4
{[%clk 0:00:37.5]} 25... Qf7 {[%clk 0:00:23.3]} 26. b3 {[%clk 0:00:36.2]} 26...
Rxe5 {[%clk 0:00:16]} 27. Qxe5 {[%clk 0:00:35.6]} 27... Rxh5 {[%clk 0:00:15.4]}
28. Qh2 {[%clk 0:00:26.6]} 28... Rxh4 {[%clk 0:00:14.9]} 29. Qxh4 {[%clk
0:00:27.5]} 29... Qd5 {[%clk 0:00:15]} 30. Re1 {[%clk 0:00:26.6]} 30... e6
{[%clk 0:00:15]} 31. Qg3 {[%clk 0:00:24.9]} 31... Be4 {[%clk 0:00:14.4]} 32.
Qc7+ {[%clk 0:00:25.3]} 32... Kh6 {[%clk 0:00:11.6]} 33. Qf4+ {[%clk 0:00:24]}
33... Qg5 {[%clk 0:00:09.2]} 34. Qh2+ {[%clk 0:00:23.7]} 34... Kg7 {[%clk
0:00:08.6]} 35. Qc7+ {[%clk 0:00:23.6]} 35... Kh6 {[%clk 0:00:08.8]} 36. Qh2+
{[%clk 0:00:23.6]} 36... Kg7 {[%clk 0:00:07]} 37. Qc7+ {[%clk 0:00:24.2]} 37...
Kf8 {[%clk 0:00:07.2]} 38. Rd1 {[%clk 0:00:23.5]} 38... Ne8 {[%clk 0:00:06.2]}
39. Qh7 {[%clk 0:00:17.7]} 39... Qf6 {[%clk 0:00:05.4]} 40. Rd7 {[%clk
0:00:16.7]} 40... Bf5 {[%clk 0:00:05.7]} 41. Qh6+ {[%clk 0:00:16.5]} 41... Ng7
{[%clk 0:00:04]} 42. Qh8# {[%clk 0:00:16.3]} 1-0

[Event "Early-Titled-Tuesday-Blitz-February-06-2024"]
[Site "Chess.com"]
[Date "2024.02.06"]
[Round "2"]
[White "Willhaven3"]
[Black "BillieKimbah"]
[Result "0-1"]
[WhiteElo "2624"]
[BlackElo "2937"]
[TimeControl "180+1"]
[EndTime "8:17:55 PST"]
[Termination "BillieKimbah won on time"]

1. d4 {[%clk 0:03:00.9]} 1... Nf6 {[%clk 0:02:58.8]} 2. Nf3 {[%clk 0:03:01.4]}
2... e6 {[%clk 0:02:57.1]} 3. c4 {[%clk 0:03:01.5]} 3... Bb4+ {[%clk 0:02:56.7]}
4. Bd2 {[%clk 0:03:01.5]} 4... a5 {[%clk 0:02:55.3]} 5. a3 {[%clk 0:03:01.3]}
5... Be7 {[%clk 0:02:53.9]} 6. Nc3 {[%clk 0:03:00.9]} 6... O-O {[%clk
0:02:53.7]} 7. Bf4 {[%clk 0:03:01]} 7... d6 {[%clk 0:02:49.2]} 8. e3 {[%clk
0:02:57.9]} 8... Nh5 {[%clk 0:02:47]} 9. Bg3 {[%clk 0:02:57.3]} 9... Nd7 {[%clk
0:02:44.1]} 10. Bd3 {[%clk 0:02:57.1]} 10... h6 {[%clk 0:02:44]} 11. Qc2 {[%clk
0:02:55.8]} 11... Re8 {[%clk 0:02:32.2]} 12. O-O-O {[%clk 0:02:55.2]} 12... c6
{[%clk 0:02:28.2]} 13. Kb1 {[%clk 0:02:52.2]} 13... d5 {[%clk 0:02:27.3]} 14. e4
{[%clk 0:02:34.6]} 14... dxc4 {[%clk 0:02:25.9]} 15. Bxc4 {[%clk 0:02:34.2]}
15... b5 {[%clk 0:02:25.9]} 16. Be2 {[%clk 0:02:31.9]} 16... b4 {[%clk
0:02:24.2]} 17. Na4 {[%clk 0:02:18.2]} 17... Nxg3 {[%clk 0:02:23.6]} 18. hxg3
{[%clk 0:02:17.3]} 18... Rb8 {[%clk 0:02:24.3]} 19. axb4 {[%clk 0:02:03.4]}
19... Rxb4 {[%clk 0:02:25.2]} 20. Nc3 {[%clk 0:01:29.7]} 20... a4 {[%clk
0:02:22.7]} 21. Na2 {[%clk 0:01:12.6]} 21... Rb8 {[%clk 0:02:10.4]} 22. Ka1
{[%clk 0:01:11.1]} 22... Qa5 {[%clk 0:02:07.5]} 23. Nd2 {[%clk 0:01:06.3]} 23...
Nb6 {[%clk 0:02:03.1]} 24. Rh5 {[%clk 0:01:05.6]} 24... Qa7 {[%clk 0:01:53]} 25.
Qc3 {[%clk 0:00:43.6]} 25... Rd8 {[%clk 0:01:46.4]} 26. Ra5 {[%clk 0:00:39]}
26... Qd7 {[%clk 0:01:37.6]} 27. Nf3 {[%clk 0:00:38.3]} 27... Qc7 {[%clk
0:01:19]} 28. Ne5 {[%clk 0:00:35]} 28... Bb7 {[%clk 0:01:10.9]} 29. f4 {[%clk
0:00:31.5]} 29... Nc8 {[%clk 0:00:53.9]} 30. Rxa4 {[%clk 0:00:28.5]} 30... Nd6
{[%clk 0:00:53]} 31. Qa5 {[%clk 0:00:23.6]} 31... Qxa5 {[%clk 0:00:49.5]} 32.
Rxa5 {[%clk 0:00:24.5]} 32... Nxe4 {[%clk 0:00:50.1]} 33. Bf3 {[%clk 0:00:24.3]}
33... Nxg3 {[%clk 0:00:45.9]} 34. Bxc6 {[%clk 0:00:23.8]} 34... Rdc8 {[%clk
0:00:33.5]} 35. Bxb7 {[%clk 0:00:20.8]} 35... Rxb7 {[%clk 0:00:34.4]} 36. Nc3
{[%clk 0:00:20.4]} 36... Bb4 {[%clk 0:00:31.2]} 37. Rb5 {[%clk 0:00:19.5]} 37...
Ra7+ {[%clk 0:00:28.7]} 38. Kb1 {[%clk 0:00:19.5]} 38... Bxc3 {[%clk 0:00:27.5]}
39. bxc3 {[%clk 0:00:20.4]} 39... Ne2 {[%clk 0:00:26.4]} 40. Rd3 {[%clk
0:00:05.5]} 40... Nxc3+ {[%clk 0:00:25.1]} 41. Rxc3 {[%clk 0:00:05.8]} 41...
Rxc3 {[%clk 0:00:25.9]} 42. d5 {[%clk 0:00:05.3]} 42... exd5 {[%clk 0:00:24.6]}
43. Rxd5 {[%clk 0:00:06.2]} 43... Rb7+ {[%clk 0:00:24.3]} 44. Ka2 {[%clk
0:00:05.9]} 44... Rc2+ {[%clk 0:00:24]} 45. Ka3 {[%clk 0:00:05.7]} 45... Rxg2
{[%clk 0:00:24]} 46. Rd4 {[%clk 0:00:04.1]} 46... h5 {[%clk 0:00:21.9]} 0-1

[Event "Early-Titled-Tuesday-Blitz-February-06-2024"]
[Site "Chess.com"]
[Date "2024.02.06"]
[Round "2"]
[White "Kotlyar_K"]
[Black "BestStelker"]
[Result "0-1"]
[WhiteElo "2457"]
[BlackElo "2711"]
[TimeControl "180+1"]
[EndTime "8:17:55 PST"]
[Termination "BestStelker won by checkmate"]

1. d4 {[%clk 0:02:20.3]} 1... Nf6 {[%clk 0:02:58.2]} 2. c4 {[%clk 0:02:20.1]}
2... e6 {[%clk 0:02:58.3]} 3. Nc3 {[%clk 0:02:19.9]} 3... Bb4 {[%clk 0:02:57.8]}
4. e3 {[%clk 0:02:20.2]} 4... O-O {[%clk 0:02:57.3]} 5. Bd2 {[%clk 0:02:20.2]}
5... d5 {[%clk 0:02:56.8]} 6. Nf3 {[%clk 0:02:19.2]} 6... b6 {[%clk 0:02:55.9]}
7. cxd5 {[%clk 0:02:19.3]} 7... exd5 {[%clk 0:02:56]} 8. Bd3 {[%clk 0:02:19.4]}
8... a6 {[%clk 0:02:54.7]} 9. O-O {[%clk 0:02:18.6]} 9... Bd6 {[%clk 0:02:54.9]}
10. Ne5 {[%clk 0:02:14.8]} 10... c5 {[%clk 0:02:52.6]} 11. f4 {[%clk 0:02:14.1]}
11... Bb7 {[%clk 0:02:52]} 12. Rc1 {[%clk 0:02:14]} 12... Nc6 {[%clk 0:02:52]}
13. Ne2 {[%clk 0:02:12.2]} 13... Ne4 {[%clk 0:02:29.1]} 14. Be1 {[%clk
0:02:08.7]} 14... Rc8 {[%clk 0:02:21.5]} 15. Ng3 {[%clk 0:01:47.9]} 15... Ne7
{[%clk 0:02:10.3]} 16. Nxe4 {[%clk 0:01:27.2]} 16... dxe4 {[%clk 0:02:11.2]} 17.
Bc4 {[%clk 0:01:20.1]} 17... b5 {[%clk 0:02:11]} 18. Bb3 {[%clk 0:01:19.5]}
18... c4 {[%clk 0:02:01.3]} 19. Bc2 {[%clk 0:01:19.2]} 19... f6 {[%clk
0:02:01.7]} 20. Ng4 {[%clk 0:01:16.5]} 20... Nf5 {[%clk 0:01:56.4]} 21. Qe2
{[%clk 0:01:15.5]} 21... Re8 {[%clk 0:01:52.3]} 22. Nf2 {[%clk 0:01:12.1]} 22...
Bb8 {[%clk 0:01:39]} 23. Bd2 {[%clk 0:01:04.4]} 23... a5 {[%clk 0:01:27.3]} 24.
a4 {[%clk 0:01:01.3]} 24... b4 {[%clk 0:01:24.9]} 25. Rfd1 {[%clk 0:00:53.6]}
25... Bd5 {[%clk 0:01:22.1]} 26. Qg4 {[%clk 0:00:44.8]} 26... g6 {[%clk
0:01:20.4]} 27. Qh3 {[%clk 0:00:28.5]} 27... Qd7 {[%clk 0:01:13.9]} 28. Be1
{[%clk 0:00:22.2]} 28... Qe6 {[%clk 0:00:44.4]} 29. Ng4 {[%clk 0:00:15.8]} 29...
h5 {[%clk 0:00:42.3]} 30. Nf2 {[%clk 0:00:15.6]} 30... Nh6 {[%clk 0:00:37.4]}
31. Qg3 {[%clk 0:00:14.9]} 31... Kh7 {[%clk 0:00:35.2]} 32. Bb1 {[%clk
0:00:11.5]} 32... g5 {[%clk 0:00:29.3]} 33. Nh3 {[%clk 0:00:09]} 33... Rg8
{[%clk 0:00:27]} 34. Qf2 {[%clk 0:00:08.9]} 34... Ng4 {[%clk 0:00:25.1]} 35. Qe2
{[%clk 0:00:05.2]} 35... Kh8 {[%clk 0:00:24.5]} 36. fxg5 {[%clk 0:00:05.2]}
36... fxg5 {[%clk 0:00:24.1]} 37. g3 {[%clk 0:00:05.2]} 37... Rcf8 {[%clk
0:00:22.8]} 38. Nf2 {[%clk 0:00:05.4]} 38... Rf3 {[%clk 0:00:21.4]} 39. Nxg4
{[%clk 0:00:03.2]} 39... Qxg4 {[%clk 0:00:22.3]} 40. Bf2 {[%clk 0:00:03]} 40...
Rgf8 {[%clk 0:00:22.1]} 41. Rf1 {[%clk 0:00:02.9]} 41... h4 {[%clk 0:00:22.8]}
42. Kg2 {[%clk 0:00:03]} 42... Rxg3+ {[%clk 0:00:20.5]} 43. hxg3 {[%clk
0:00:02.5]} 43... Qxe2 {[%clk 0:00:19.1]} 44. Rce1 {[%clk 0:00:03.3]} 44...
Rxf2+ {[%clk 0:00:18.2]} 45. Kh3 {[%clk 0:00:03.3]} 45... Be6+ {[%clk
0:00:17.6]} 46. g4 {[%clk 0:00:03.6]} 46... Qxg4# {[%clk 0:00:17.9]} 0-1

[Event "Early-Titled-Tuesday-Blitz-February-06-2024"]
[Site "Chess.com"]
[Date "2024.02.06"]
[Round "2"]
[White "SaqoChess_Twitch"]
[Black "Tesla37"]
[Result "1-0"]
[WhiteElo "2605"]
[BlackElo "2850"]
[TimeControl "180+1"]
[EndTime "8:17:57 PST"]
[Termination "SaqoChess_Twitch won by resignation"]

1. d4 {[%clk 0:03:00.9]} 1... Nf6 {[%clk 0:02:59.4]} 2. c4 {[%clk 0:03:00.6]}
2... g6 {[%clk 0:02:59.8]} 3. Nc3 {[%clk 0:02:59.8]} 3... Bg7 {[%clk 0:03:00.2]}
4. Nf3 {[%clk 0:03:00.1]} 4... O-O {[%clk 0:02:59.3]} 5. h3 {[%clk 0:02:59.8]}
5... d6 {[%clk 0:02:59]} 6. Bf4 {[%clk 0:02:59.7]} 6... Nbd7 {[%clk 0:02:56.6]}
7. e3 {[%clk 0:02:59.3]} 7... Qe8 {[%clk 0:02:56.4]} 8. Bh2 {[%clk 0:02:37.6]}
8... a6 {[%clk 0:02:48]} 9. Be2 {[%clk 0:02:33.5]} 9... e5 {[%clk 0:02:47.9]}
10. dxe5 {[%clk 0:02:33.6]} 10... dxe5 {[%clk 0:02:47.7]} 11. Qc2 {[%clk
0:02:33.3]} 11... Qe7 {[%clk 0:02:47]} 12. O-O {[%clk 0:02:29.9]} 12... Re8
{[%clk 0:02:40.4]} 13. Nd5 {[%clk 0:02:29.8]} 13... Nxd5 {[%clk 0:02:39.3]} 14.
cxd5 {[%clk 0:02:30.2]} 14... e4 {[%clk 0:02:07]} 15. Nd4 {[%clk 0:02:25]} 15...
Nb6 {[%clk 0:02:04.6]} 16. Qxc7 {[%clk 0:02:09.7]} 16... Qxc7 {[%clk 0:02:03]}
17. Bxc7 {[%clk 0:02:10.6]} 17... Nxd5 {[%clk 0:02:02.9]} 18. Bh2 {[%clk
0:02:07.1]} 18... Bxd4 {[%clk 0:01:59.5]} 19. exd4 {[%clk 0:02:07.1]} 19... Be6
{[%clk 0:01:58.6]} 20. Rac1 {[%clk 0:02:04.4]} 20... Rac8 {[%clk 0:01:58.3]} 21.
a3 {[%clk 0:02:03.7]} 21... f6 {[%clk 0:01:54.6]} 22. Rc5 {[%clk 0:01:57.3]}
22... b6 {[%clk 0:01:35.1]} 23. Rxc8 {[%clk 0:01:57]} 23... Rxc8 {[%clk
0:01:35.4]} 24. Bxa6 {[%clk 0:01:48.7]} 24... Rc2 {[%clk 0:01:35.1]} 25. Re1
{[%clk 0:01:29.6]} 25... f5 {[%clk 0:01:29.3]} 26. f3 {[%clk 0:01:19.8]} 26...
e3 {[%clk 0:01:15.2]} 27. Bb7 {[%clk 0:01:19.4]} 27... Rxb2 {[%clk 0:01:06.5]}
28. Bxd5 {[%clk 0:01:19.2]} 28... Bxd5 {[%clk 0:01:06.5]} 29. Rxe3 {[%clk
0:01:19.9]} 29... Kf7 {[%clk 0:01:06.3]} 30. Bf4 {[%clk 0:01:19.1]} 30... h5
{[%clk 0:01:01.2]} 31. h4 {[%clk 0:01:18.5]} 31... Bc4 {[%clk 0:00:52.4]} 32.
Bg5 {[%clk 0:01:17.3]} 32... Rb1+ {[%clk 0:00:48.9]} 33. Kh2 {[%clk 0:01:17.4]}
33... Rb2 {[%clk 0:00:49.5]} 34. Re7+ {[%clk 0:01:03.8]} 34... Kf8 {[%clk
0:00:49]} 35. Kg3 {[%clk 0:00:54.1]} 35... Bf1 {[%clk 0:00:48.3]} 36. Rb7 {[%clk
0:00:29.5]} 36... Rxg2+ {[%clk 0:00:44.7]} 37. Kf4 {[%clk 0:00:29.8]} 37... Rb2
{[%clk 0:00:41]} 38. d5 {[%clk 0:00:26.3]} 38... Ba6 {[%clk 0:00:17.9]} 39. Ra7
{[%clk 0:00:22.2]} 39... Bb5 {[%clk 0:00:18]} 40. Ke5 {[%clk 0:00:20.5]} 40...
Re2+ {[%clk 0:00:17.2]} 41. Kf6 {[%clk 0:00:20.2]} 41... Ke8 {[%clk 0:00:14.3]}
42. d6 {[%clk 0:00:14.3]} 42... Rf2 {[%clk 0:00:10.5]} 43. d7+ {[%clk
0:00:11.7]} 43... Bxd7 {[%clk 0:00:05.3]} 44. Ra8+ {[%clk 0:00:11.9]} 44... Bc8
{[%clk 0:00:05]} 45. Rxc8+ {[%clk 0:00:12.8]} 45... Kd7 {[%clk 0:00:05.4]} 46.
Rc3 {[%clk 0:00:13.7]} 46... b5 {[%clk 0:00:04.2]} 47. Kxg6 {[%clk 0:00:13.9]}
1-0

[Event "Early-Titled-Tuesday-Blitz-February-06-2024"]
[Site "Chess.com"]
[Date "2024.02.06"]
[Round "2"]
[White "BeautiFullMindChess"]
[Black "malakismayil"]
[Result "0-1"]
[WhiteElo "2282"]
[BlackElo "2503"]
[TimeControl "180+1"]
[EndTime "8:17:57 PST"]
[Termination "malakismayil won by resignation"]

1. e4 {[%clk 0:03:00.9]} 1... e5 {[%clk 0:02:57.2]} 2. Nf3 {[%clk 0:03:01.3]}
2... Nc6 {[%clk 0:02:57.4]} 3. Nc3 {[%clk 0:03:00]} 3... Nf6 {[%clk 0:02:56.9]}
4. Bb5 {[%clk 0:03:00.1]} 4... a6 {[%clk 0:02:55.8]} 5. Bxc6 {[%clk 0:02:54.5]}
5... dxc6 {[%clk 0:02:56]} 6. Nxe5 {[%clk 0:02:54.9]} 6... Bb4 {[%clk
0:02:35.7]} 7. d3 {[%clk 0:02:47.2]} 7... Qd4 {[%clk 0:02:26.1]} 8. Nf3 {[%clk
0:02:14]} 8... Bxc3+ {[%clk 0:02:10.2]} 9. bxc3 {[%clk 0:02:14.9]} 9... Qxc3+
{[%clk 0:02:10.9]} 10. Bd2 {[%clk 0:02:15.2]} 10... Qc5 {[%clk 0:02:10.7]} 11.
Rb1 {[%clk 0:02:09.7]} 11... a5 {[%clk 0:02:00]} 12. h3 {[%clk 0:02:01.5]} 12...
O-O {[%clk 0:01:58.4]} 13. O-O {[%clk 0:02:01.2]} 13... b5 {[%clk 0:01:46.8]}
14. Bf4 {[%clk 0:02:00.1]} 14... Be6 {[%clk 0:01:43.3]} 15. Ra1 {[%clk
0:01:49.5]} 15... Rfd8 {[%clk 0:01:34.2]} 16. Bg5 {[%clk 0:01:39.3]} 16... Nxe4
{[%clk 0:01:25.7]} 17. Bxd8 {[%clk 0:01:38.4]} 17... Rxd8 {[%clk 0:01:26.6]} 18.
Qe1 {[%clk 0:01:33.7]} 18... Nc3 {[%clk 0:01:11.2]} 19. a3 {[%clk 0:01:30.4]}
19... Nd5 {[%clk 0:01:00]} 20. Qd2 {[%clk 0:01:15.7]} 20... a4 {[%clk
0:00:49.8]} 21. Ng5 {[%clk 0:01:11.2]} 21... Bf5 {[%clk 0:00:46.5]} 22. Rfe1
{[%clk 0:01:07.3]} 22... h6 {[%clk 0:00:45.7]} 23. Ne4 {[%clk 0:01:01.4]} 23...
Qd4 {[%clk 0:00:43.8]} 24. Ng3 {[%clk 0:00:57]} 24... Bg6 {[%clk 0:00:40.7]} 25.
Rab1 {[%clk 0:00:53.3]} 25... Qf6 {[%clk 0:00:27.4]} 26. c4 {[%clk 0:00:47.8]}
26... Nf4 {[%clk 0:00:19]} 27. cxb5 {[%clk 0:00:44.4]} 27... Rxd3 {[%clk
0:00:19.1]} 28. Qb4 {[%clk 0:00:23.9]} 28... Rd4 {[%clk 0:00:15.5]} 29. Re8+
{[%clk 0:00:23]} 29... Kh7 {[%clk 0:00:14.6]} 30. Qf8 {[%clk 0:00:23.9]} 30...
Bxb1 {[%clk 0:00:14.8]} 31. Qg8+ {[%clk 0:00:17.3]} 31... Kg6 {[%clk 0:00:15.1]}
32. h4 {[%clk 0:00:17.2]} 32... Nh5 {[%clk 0:00:09.7]} 33. Nxh5 {[%clk
0:00:14.2]} 33... Kxh5 {[%clk 0:00:10.6]} 34. Re3 {[%clk 0:00:13.5]} 34... Rd1+
{[%clk 0:00:09.3]} 35. Kh2 {[%clk 0:00:13.6]} 35... Qxf2 {[%clk 0:00:03.3]} 36.
Qe8 {[%clk 0:00:09.6]} 36... Qf4+ {[%clk 0:00:02.7]} 37. Rg3 {[%clk 0:00:06.2]}
37... Rh1+ {[%clk 0:00:02.8]} 38. Kxh1 {[%clk 0:00:05.8]} 38... Qxg3 {[%clk
0:00:03.5]} 39. Qe2+ {[%clk 0:00:06.5]} 39... Qg4 {[%clk 0:00:03.6]} 40. Qe7
{[%clk 0:00:04]} 40... Qxh4+ {[%clk 0:00:03.3]} 41. Qxh4+ {[%clk 0:00:04.8]}
41... Kxh4 {[%clk 0:00:04.2]} 42. Kg1 {[%clk 0:00:05.4]} 42... cxb5 {[%clk
0:00:04.3]} 0-1

[Event "Early-Titled-Tuesday-Blitz-February-06-2024"]
[Site "Chess.com"]
[Date "2024.02.06"]
[Round "2"]
[White "SashaKuzhilniy"]
[Black "VitaliyBernadskiy"]
[Result "0-1"]
[WhiteElo "2611"]
[BlackElo "2908"]
[TimeControl "180+1"]
[EndTime "8:17:58 PST"]
[Termination "VitaliyBernadskiy won by resignation"]

1. d4 {[%clk 0:03:00.9]} 1... Nf6 {[%clk 0:02:59.2]} 2. Nf3 {[%clk 0:03:00.5]}
2... e6 {[%clk 0:02:59.5]} 3. Bf4 {[%clk 0:03:00]} 3... Be7 {[%clk 0:02:57.6]}
4. c3 {[%clk 0:02:56.6]} 4... Nh5 {[%clk 0:02:57.2]} 5. Bd2 {[%clk 0:02:50.4]}
5... d5 {[%clk 0:02:57.1]} 6. Ne5 {[%clk 0:02:41.8]} 6... Nf6 {[%clk 0:02:51]}
7. Bf4 {[%clk 0:02:40.9]} 7... O-O {[%clk 0:02:47.8]} 8. e3 {[%clk 0:02:40.7]}
8... c5 {[%clk 0:02:47.9]} 9. Bd3 {[%clk 0:02:40.1]} 9... Nc6 {[%clk 0:02:48.2]}
10. Nd2 {[%clk 0:02:36.6]} 10... Nxe5 {[%clk 0:02:48.2]} 11. Bxe5 {[%clk
0:02:35.9]} 11... b6 {[%clk 0:02:44.2]} 12. Qf3 {[%clk 0:02:30.5]} 12... Bb7
{[%clk 0:02:43.7]} 13. Qh3 {[%clk 0:02:27.2]} 13... Ne4 {[%clk 0:02:28.1]} 14.
f3 {[%clk 0:01:52.2]} 14... Ng5 {[%clk 0:02:26.1]} 15. Qg3 {[%clk 0:01:52.2]}
15... f6 {[%clk 0:02:25.4]} 16. Bf4 {[%clk 0:01:16.4]} 16... Nf7 {[%clk
0:02:24.3]} 17. Qh3 {[%clk 0:01:15]} 17... f5 {[%clk 0:02:23.1]} 18. g4 {[%clk
0:01:13.9]} 18... Ng5 {[%clk 0:02:05.4]} 19. Bxg5 {[%clk 0:00:59.5]} 19... Bxg5
{[%clk 0:02:04.8]} 20. f4 {[%clk 0:01:00.1]} 20... Be7 {[%clk 0:01:51.2]} 21.
gxf5 {[%clk 0:00:56.7]} 21... exf5 {[%clk 0:01:50.8]} 22. Bxf5 {[%clk
0:00:53.4]} 22... g6 {[%clk 0:01:50.6]} 23. Rg1 {[%clk 0:00:45]} 23... Rf6
{[%clk 0:01:48.3]} 24. Nf3 {[%clk 0:00:41.2]} 24... cxd4 {[%clk 0:01:43.6]} 25.
cxd4 {[%clk 0:00:37.7]} 25... Bc8 {[%clk 0:01:28.9]} 26. Bxc8 {[%clk 0:00:33.4]}
26... Rxc8 {[%clk 0:01:27.9]} 27. Ne5 {[%clk 0:00:21]} 27... Rc2 {[%clk
0:01:24.8]} 28. Rg2 {[%clk 0:00:21.6]} 28... Qc7 {[%clk 0:01:19.1]} 29. Rxc2
{[%clk 0:00:21.8]} 29... Qxc2 {[%clk 0:01:20]} 30. Qd7 {[%clk 0:00:21.2]} 30...
Qxb2 {[%clk 0:00:41.6]} 31. Qxe7 {[%clk 0:00:20.6]} 31... Qxa1+ {[%clk
0:00:41.5]} 32. Kf2 {[%clk 0:00:21.2]} 32... Qxa2+ {[%clk 0:00:40.4]} 33. Kf3
{[%clk 0:00:18.2]} 33... Rf5 {[%clk 0:00:37.8]} 34. Ng4 {[%clk 0:00:12.2]} 34...
Qb1 {[%clk 0:00:25.1]} 35. Nh6+ {[%clk 0:00:11.2]} 35... Kh8 {[%clk 0:00:25.4]}
36. Qe8+ {[%clk 0:00:11]} 36... Kg7 {[%clk 0:00:24.5]} 37. Nxf5+ {[%clk
0:00:10.4]} 37... Qxf5 {[%clk 0:00:25.4]} 38. Qe7+ {[%clk 0:00:09.4]} 38... Kh6
{[%clk 0:00:25.5]} 39. Qxa7 {[%clk 0:00:08.5]} 39... Qh3+ {[%clk 0:00:25.1]} 40.
Ke2 {[%clk 0:00:07.9]} 40... Qxh2+ {[%clk 0:00:25.4]} 41. Kd3 {[%clk 0:00:08.5]}
41... Qb2 {[%clk 0:00:22.2]} 42. Qf7 {[%clk 0:00:06.8]} 42... Qb1+ {[%clk
0:00:20.4]} 43. Kd2 {[%clk 0:00:07]} 43... Qf5 {[%clk 0:00:21]} 44. Qb7 {[%clk
0:00:04.9]} 44... Qe6 {[%clk 0:00:20.6]} 45. Qb8 {[%clk 0:00:03.1]} 45... Kh5
{[%clk 0:00:19.3]} 46. Qh8 {[%clk 0:00:02.1]} 46... h6 {[%clk 0:00:19.1]} 47.
Qe5+ {[%clk 0:00:02.3]} 47... Qxe5 {[%clk 0:00:19]} 48. fxe5 {[%clk 0:00:02.9]}
48... Kg5 {[%clk 0:00:18.9]} 49. Kd3 {[%clk 0:00:03.4]} 49... Kf5 {[%clk
0:00:19.1]} 0-1